bitfinex/quotes_ETHUSD_20250323
["timestamp","ask_amount","ask_price","bid_price","bid_amount"]
[1742724385215,4.95394,2018.6,2018.4,0.36642027]
[1742724385617,4.95394,2018.6,2018.4,4.574]
[1742724385918,4.95394,2018.6,2018.5,0.36635535]
[1742724388995,4.95417,2018.5,2018.4,4.574]
[1742724389224,4.95417,2018.5,2018.4,4.94042027]
[1742724395650,6.323181,2018.5,2018.4,4.94042027]
[1742724395837,7.116481,2018.5,2018.4,4.94042027]
[1742724396154,5.74747,2018.5,2018.4,4.94042027]
[1742724397211,5.74747,2018.5,2018.4,0.36642027]
[1742724397409,5.74821,2018.2,2018.1,26.194]
[1742724397723,5.74821,2018.2,2018.1,26.515739]
[1742724401825,5.74821,2018.2,2018.1,0.321739]
[1742724402518,10.70331,2018.2,2017.8,4.574]
[1742724402719,10.70331,2018.2,2017.9,0.32186891]
[1742724402917,10.70331,2018.2,2017.8,4.574]
[1742724403163,10.70331,2018.2,2017.9,0.32186891]
[1742724403359,10.70331,2018.2,2017.8,4.574]
[1742724403575,10.70331,2018.2,2017.9,0.32186891]
[1742724403576,5.74821,2018.2,2017.9,0.32186891]
[1742724403861,5.74821,2018.2,2017.8,9.52986]
[1742724404170,0.7933,2018.2,2017.9,0.32186891]
[1742724404470,4.95466,2018.3,2017.9,5.60494]
[1742724404626,4.95428,2018.5,2018.1,4.95499]
[1742724405164,4.95428,2018.5,2018.2,0.97107406]
[1742724407072,10.70146,2018.6,2018.2,5.92593406]
[1742724409286,4.95423,2018.5,2018.2,0.97107406]
[1742724412593,4.95398,2018.6,2018.2,0.97107406]
[1742724412888,4.95398,2018.6,2018.2,5.92596406]
[1742724413061,4.95398,2018.6,2018.2,10.50496406]
[1742724413892,9.90812,2018.6,2018.2,10.50496406]
[1742724414794,9.9081,2018.6,2018.2,10.50496406]
[1742724417692,4.95398,2018.6,2018.2,10.50496406]
[1742724418487,9.90811,2018.6,2018.2,10.50496406]
[1742724418654,4.95398,2018.6,2018.2,10.50496406]
[1742724419466,4.95418,2018.5,2018.2,10.50496406]
[1742724421769,4.95369,2018.7,2018.3,4.95451]
[1742724421975,4.95369,2018.7,2018.4,0.6494]
[1742724422179,4.95369,2018.7,2018.5,0.32282038]
[1742724424499,4.95379,2018.7,2018.5,0.32282038]
[1742724429107,4.95392,2018.6,2018.5,0.32282038]
[1742724430884,4.95392,2018.6,2018.2,36.3783]
[1742724431093,4.95392,2018.6,2018.5,0.32233751]
[1742724431316,4.95392,2018.6,2018.2,36.3783]
[1742724431505,4.95392,2018.6,2018.5,0.32233751]
[1742724431710,4.95392,2018.6,2018.2,36.3783]
[1742724431912,4.95392,2018.6,2018.5,0.32233751]
[1742724432516,4.95392,2018.6,2018.2,36.3783]
[1742724432816,4.95392,2018.6,2018.2,41.33305]
[1742724432983,4.95392,2018.6,2018.3,0.32246736]
[1742724433318,4.95392,2018.6,2018.2,41.33305]
[1742724433615,4.95379,2018.7,2018.3,5.27709736]
[1742724434217,4.95394,2018.6,2018.3,5.27709736]
[1742724437218,4.95394,2018.6,2018.3,0.32246736]
[1742724437390,4.95394,2018.6,2018.2,36.37825]
[1742724437754,4.95394,2018.6,2018.3,0.32187736]
[1742724438018,4.95394,2018.6,2018.2,36.37825]
[1742724438221,4.95394,2018.6,2018.3,0.32187736]
[1742724438392,4.95394,2018.6,2018.2,36.37825]
[1742724438592,4.95394,2018.6,2018.3,0.32187736]
[1742724438907,4.95394,2018.6,2018.2,36.37825]
[1742724439107,4.95394,2018.6,2018.4,0.32181243]
[1742724439296,9.90765,2018.7,2018.3,5.27649736]
[1742724439497,9.90765,2018.7,2018.5,0.32174751]
[1742724439697,9.90765,2018.7,2018.3,4.95462]
[1742724439698,9.90765,2018.7,2018.4,0.32181243]
[1742724440027,12.90768,2018.7,2018.5,0.32174751]
[1742724440321,4.95392,2018.6,2018.3,4.95462]
[1742724441724,4.95379,2018.7,2018.3,4.95462]
[1742724441891,9.90768,2018.7,2018.3,4.95462]
[1742724442292,4.95393,2018.6,2018.2,36.37825]
[1742724443603,4.95393,2018.6,2018.2,41.33296]
[1742724444092,4.95393,2018.6,2018.2,36.37811]
[1742724448538,5.76093,2018.6,2018.2,36.37811]
[1742724448715,5.76093,2018.6,2018.3,0.32177011]
[1742724449116,5.76093,2018.6,2018.2,36.37811]
[1742724449328,5.76093,2018.6,2018.4,0.32170518]
[1742724449516,5.76093,2018.6,2018.3,0.32177011]
[1742724449718,5.76093,2018.6,2018.5,0.32164026]
[1742724449936,5.76093,2018.6,2018.4,0.32170518]
[1742724450235,5.76093,2018.6,2018.5,0.32164026]
[1742724450436,5.76093,2018.6,2018.2,36.37811]
[1742724450636,5.76093,2018.6,2018.3,0.32177011]
[1742724450837,5.76093,2018.6,2018.2,36.37811]
[1742724451037,5.76093,2018.6,2018.3,0.32177011]
[1742724451227,5.76093,2018.6,2018.2,36.37811]
[1742724451429,5.76093,2018.6,2018.3,0.32177011]
[1742724451612,5.76093,2018.6,2018.2,36.37811]
[1742724451809,5.76093,2018.6,2018.3,0.32177011]
[1742724452010,5.76093,2018.6,2018.2,36.37811]
[1742724452210,5.76093,2018.6,2018.3,0.32177011]
[1742724452449,5.76093,2018.6,2018.2,36.37811]
[1742724452633,5.76093,2018.6,2018.3,0.32177011]
[1742724452809,5.76093,2018.6,2018.2,36.37811]
[1742724453009,5.76093,2018.6,2018.3,0.32177011]
[1742724453220,5.76093,2018.6,2018.2,36.37811]
[1742724453420,5.76093,2018.6,2018.3,0.32177011]
[1742724453606,5.76093,2018.6,2018.2,36.37811]
[1742724453807,5.76093,2018.6,2018.3,0.32177011]
[1742724454033,5.76093,2018.6,2018.2,36.37811]
[1742724454234,5.76093,2018.6,2018.3,0.32177011]
[1742724454543,5.76093,2018.6,2018.2,36.37811]
[1742724454730,5.76093,2018.6,2018.4,0.32170518]
[1742724455042,5.76093,2018.6,2018.5,0.32164026]
[1742724455244,5.76093,2018.6,2018.2,36.37811]
[1742724455542,5.76093,2018.6,2018.3,0.32177011]
[1742724456037,5.76093,2018.6,2018.4,0.32170518]
[1742724456354,5.76093,2018.6,2018.2,36.37811]
[1742724456938,5.76093,2018.6,2018.3,0.32177011]
[1742724457331,5.76093,2018.6,2018.2,36.37811]
[1742724457535,5.76093,2018.6,2018.4,0.32170518]
[1742724457735,5.76093,2018.6,2018.3,0.32177011]
[1742724457935,5.76093,2018.6,2018.5,0.32164026]
[1742724458122,5.76093,2018.6,2018.4,0.32170518]
[1742724458329,5.76093,2018.6,2018.5,0.32164026]
[1742724458624,4.95444,2018.4,2018.2,30.774]
[1742724458829,4.95444,2018.4,2018.3,0.32177011]
[1742724459012,4.95444,2018.4,2018.2,30.774]
[1742724459211,4.95444,2018.4,2018.3,0.32177011]
[1742724459442,4.95438,2018.5,2018.2,30.774]
[1742724459613,4.95438,2018.5,2018.3,0.32177011]
[1742724459808,4.95438,2018.5,2018.2,30.774]
[1742724460014,4.95438,2018.5,2018.3,0.32177011]
[1742724460342,4.95438,2018.5,2018.2,30.774]
[1742724460546,4.95438,2018.5,2018.4,0.32170518]
[1742724460725,4.95438,2018.5,2018.3,0.32177011]
[1742724460925,4.95438,2018.5,2018.4,0.32170518]
[1742724461336,4.95438,2018.5,2018.2,35.7289]
[1742724461543,4.95438,2018.5,2018.4,0.32170518]
[1742724461749,4.95438,2018.5,2018.3,0.32177011]
[1742724461917,4.95438,2018.5,2018.4,0.32170518]
[1742724462248,4.95438,2018.5,2018.2,35.7289]
[1742724462448,4.95438,2018.5,2018.3,0.32230648]
[1742724462675,4.95438,2018.5,2018.2,35.7289]
[1742724462951,5.76099,2018.6,2018.4,0.32224156]
[1742724463172,6.832481,2018.6,2018.3,0.32230648]
[1742724463317,6.832481,2018.6,2018.5,0.32217663]
[1742724463517,6.832481,2018.6,2018.4,0.32224156]
[1742724463742,6.832481,2018.6,2018.5,0.32217663]
[1742724464249,4.95419,2018.5,2018.2,30.774]
[1742724467019,4.95419,2018.5,2018.2,4.579]
[1742724468430,0.8197,2018.4,2018.2,4.579]
[1742724470353,4.95433,2018.5,2018.2,9.5339]
[1742724471860,4.95433,2018.5,2018.2,4.579]
[1742724475360,5.77364,2018.6,2018.2,9.53389]
[1742724475738,10.72777,2018.6,2018.2,9.53389]
[1742724476980,11.800547,2018.6,2018.2,9.53389]
[1742724478669,11.800547,2018.6,2018.3,0.32241373]
[1742724478961,4.95417,2018.5,2018.2,9.53389]
[1742724479163,4.95417,2018.5,2018.4,0.32234881]
[1742724479370,10.72779,2018.6,2018.3,0.32241373]
[1742724479569,5.77364,2018.6,2018.4,0.32234881]
[1742724479866,0.8197,2018.6,2018.2,4.579]
[1742724480060,4.95429,2018.5,2018.3,0.32241373]
[1742724480239,0.7763,2018.4,2018.2,4.579]
[1742724480441,0.7763,2018.4,2018.3,0.32241373]
[1742724480640,0.7763,2018.4,2018.2,4.579]
[1742724480840,0.7763,2018.4,2018.3,0.32241373]
[1742724481070,0.7763,2018.4,2018.2,4.579]
[1742724481271,0.7763,2018.4,2018.3,0.32241373]
[1742724481473,0.7763,2018.4,2018.2,4.579]
[1742724481672,0.7763,2018.4,2018.3,0.32241373]
[1742724481873,0.7763,2018.4,2018.2,4.579]
[1742724482060,0.7763,2018.4,2018.3,0.32241373]
[1742724482261,0.7763,2018.4,2018.2,9.5339]
[1742724482461,0.7763,2018.4,2018.3,0.32241373]
[1742724482760,0.7763,2018.4,2018.2,9.5339]
[1742724482973,0.7763,2018.4,2018.3,0.32241373]
[1742724483766,0.7763,2018.4,2018.2,9.5339]
[1742724483937,0.7763,2018.4,2018.3,0.32241373]
[1742724484276,0.7763,2018.4,2018.2,4.579]
[1742724484453,0.7763,2018.4,2018.3,0.32241373]
[1742724484636,0.7763,2018.4,2018.2,4.579]
[1742724484840,0.7763,2018.4,2018.3,0.32241373]
[1742724485041,0.7763,2018.4,2018.2,4.579]
[1742724485252,0.7763,2018.4,2018.3,0.32241373]
[1742724485453,0.7763,2018.4,2018.2,4.579]
[1742724485649,0.7763,2018.4,2018.3,0.32241373]
[1742724485855,0.7763,2018.4,2018.2,4.579]
[1742724486081,0.7763,2018.4,2018.3,0.32241373]
[1742724486376,0.7763,2018.4,2018.2,4.579]
[1742724486588,0.7763,2018.4,2018.3,0.32241373]
[1742724487281,0.7763,2018.4,2018.2,4.579]
[1742724487469,0.7763,2018.4,2018.3,0.31732036]
[1742724487671,0.7763,2018.4,2018.2,4.579]
[1742724487844,0.7763,2018.4,2018.3,0.31732036]
[1742724488048,0.7763,2018.4,2018.2,4.579]
[1742724488346,0.7763,2018.4,2018.3,0.31732036]
[1742724488770,0.7763,2018.4,2018.2,9.53389]
[1742724488971,0.7763,2018.4,2018.3,0.31732036]
[1742724489360,0.7763,2018.4,2018.2,9.53389]
[1742724489563,0.7763,2018.4,2018.3,0.31732036]
[1742724489979,0.7763,2018.4,2018.2,9.53389]
[1742724490285,0.7763,2018.4,2018.3,0.31732036]
[1742724490489,0.7763,2018.4,2018.2,9.53389]
[1742724490667,0.7763,2018.4,2018.3,0.31732036]
[1742724490867,0.7763,2018.4,2018.2,9.53389]
[1742724491187,0.7763,2018.4,2018.3,0.31732036]
[1742724491490,0.7763,2018.4,2018.2,4.579]
[1742724491654,0.7763,2018.4,2018.3,0.31732036]
[1742724491862,0.7763,2018.4,2018.2,4.579]
[1742724492191,0.7763,2018.4,2018.3,0.31732036]
[1742724492491,0.7763,2018.4,2018.2,4.579]
[1742724492655,0.7763,2018.4,2018.3,0.31732036]
[1742724492855,0.7763,2018.4,2018.2,9.5339]
[1742724493056,0.7763,2018.4,2018.3,0.31732036]
[1742724493255,0.7763,2018.4,2018.2,9.5339]
[1742724493460,0.7763,2018.4,2018.3,0.31732036]
[1742724493692,0.7763,2018.4,2018.2,9.5339]
[1742724493893,0.7763,2018.4,2018.3,0.31732036]
[1742724494103,0.7763,2018.4,2018.2,9.5339]
[1742724494297,0.7763,2018.4,2018.3,0.31732036]
[1742724494595,0.7763,2018.4,2018.2,9.5339]
[1742724494801,0.7763,2018.4,2018.3,0.31732036]
[1742724495093,0.7763,2018.4,2018.2,9.5339]
[1742724495401,0.7763,2018.4,2018.3,0.31732036]
[1742724495807,0.7763,2018.4,2018.2,4.579]
[1742724496011,0.7763,2018.4,2018.3,0.31732036]
[1742724496316,0.7763,2018.4,2018.2,4.579]
[1742724496501,0.7763,2018.4,2018.3,0.31732036]
[1742724496702,0.7763,2018.4,2018.2,4.579]
[1742724496903,0.7763,2018.4,2018.3,0.31732036]
[1742724497210,0.7763,2018.4,2018.2,4.579]
[1742724497710,0.7763,2018.4,2018.3,0.31887473]
[1742724497914,0.7763,2018.4,2018.2,4.579]
[1742724498103,0.7763,2018.4,2018.3,0.31887473]
[1742724498302,5.73071,2018.4,2018.0,31.15021]
[1742724498610,5.74195,2018.1,2018.0,26.195]
[1742724499510,5.74249,2017.9,2017.7,4.574]
[1742724500105,4.95589,2017.8,2017.5,26.196]
[1742724500307,5.74249,2017.9,2017.5,35.72661]
[1742724500488,10.69833,2017.9,2017.5,35.72661]
[1742724500688,5.74249,2017.9,2017.5,35.72661]
[1742724501805,10.69833,2017.9,2017.5,35.72661]
[1742724502000,4.95591,2017.8,2017.5,30.77]
[1742724502589,5.7431,2017.7,2017.5,26.196]
[1742724503797,4.95638,2017.6,2017.5,26.196]
[1742724506826,1.856633,2017.9,2017.5,26.196]
[1742724507031,0.7868,2018.1,2017.8,4.95574]
[1742724507197,3.0,2018.3,2017.8,4.95574]
[1742724507198,0.7868,2018.3,2017.8,4.95573]
[1742724507396,5.74148,2018.3,2017.9,5.60488]
[1742724507598,5.74148,2018.3,2017.9,10.56037]
[1742724508226,5.74148,2018.3,2017.9,5.60488]
[1742724508832,5.74148,2018.3,2018.0,0.2988728]
[1742724510738,10.69634,2018.3,2018.0,0.2988728]
[1742724515144,5.74148,2018.3,2018.0,0.2988728]
[1742724516224,4.95468,2018.3,2018.0,0.2988728]
[1742724517747,4.95467,2018.3,2018.0,5.2541528]
[1742724518162,4.95463,2018.4,2018.0,5.2541528]
[1742724518829,4.95467,2018.3,2018.0,0.2988728]
[1742724519034,4.95494,2018.2,2018.0,0.2988728]
[1742724523058,10.66484,2018.2,2018.0,0.2988728]
[1742724523222,10.66484,2018.2,2017.8,31.15669]
[1742724523424,10.66484,2018.2,2018.1,0.29051557]
[1742724523622,11.731324,2018.2,2017.8,31.15669]
[1742724523857,0.7548,2018.7,2018.2,0.6494]
[1742724524033,4.95353,2018.8,2018.5,0.6494]
[1742724524219,5.70808,2018.9,2018.5,0.6494]
[1742724524425,7.95345,2018.8,2018.6,0.29003049]
[1742724524818,4.95345,2018.8,2018.6,0.29003049]
[1742724525024,5.524505,2018.7,2018.6,0.29003049]
[1742724525256,4.95416,2018.6,2018.3,4.576]
[1742724525451,4.95429,2018.5,2018.3,4.576]
[1742724527259,4.95399,2018.6,2018.3,4.576]
[1742724529859,6.279315,2018.7,2018.3,9.53062]
[1742724530733,11.233195,2018.7,2018.3,9.53062]
[1742724530933,6.279315,2018.7,2018.3,9.53062]
[1742724531145,4.95369,2018.7,2018.3,9.53062]
[1742724531347,4.95369,2018.7,2018.4,0.6494]
[1742724531836,4.95369,2018.7,2018.4,5.6038]
[1742724532559,4.95369,2018.7,2018.4,0.6494]
[1742724532766,4.95369,2018.7,2018.3,9.53046]
[1742724534667,0.7586,2018.9,2018.5,4.95407]
[1742724534873,5.7118,2018.9,2018.5,5.60347]
[1742724535875,4.9532,2018.9,2018.5,10.55746]
[1742724536054,9.906,2019.0,2018.6,4.95373]
[1742724536244,4.95295,2019.0,2018.6,4.95373]
[1742724538943,4.95295,2019.0,2018.7,0.28136233]
[1742724539197,4.95295,2019.0,2018.6,4.95373]
[1742724539338,4.95295,2019.0,2018.8,0.28129743]
[1742724539545,4.95295,2019.0,2018.6,4.95373]
[1742724539760,4.95295,2019.0,2018.7,0.28472721]
[1742724540059,4.95295,2019.0,2018.6,4.95373]
[1742724540255,4.95295,2019.0,2018.8,0.28466231]
[1742724540472,4.95295,2019.0,2018.7,0.28472721]
[1742724540676,4.95295,2019.0,2018.9,0.28459741]
[1742724540859,6.074376,2019.0,2018.8,0.28466231]
[1742724541185,6.074376,2019.0,2018.9,0.28459741]
[1742724541356,6.074376,2019.0,2018.6,4.95373]
[1742724541556,4.95295,2019.0,2018.7,0.28472721]
[1742724542088,4.95295,2019.0,2018.6,4.95373]
[1742724542294,4.95295,2019.0,2018.8,0.28466231]
[1742724542454,4.95295,2019.0,2018.7,0.28472721]
[1742724542654,4.95295,2019.0,2018.9,0.28459741]
[1742724542853,4.95295,2019.0,2018.8,0.28466231]
[1742724543089,4.95295,2019.0,2018.9,0.28459741]
[1742724543490,4.95295,2019.0,2018.6,4.95373]
[1742724543659,4.95295,2019.0,2018.9,0.28459741]
[1742724543987,6.074375,2019.0,2018.9,0.28459741]
[1742724544183,6.074375,2019.0,2018.5,5.60352]
[1742724544387,9.90612,2019.0,2018.6,0.28479212]
[1742724545904,9.90608,2019.0,2018.6,0.28479212]
[1742724546105,4.95319,2018.9,2018.6,0.28479212]
[1742724546465,5.71144,2019.1,2018.6,5.23863212]
[1742724546664,4.95284,2019.1,2018.8,0.6494]
[1742724547090,4.95284,2019.1,2018.9,0.28459741]
[1742724547298,4.95294,2019.0,2018.9,0.28459741]
[1742724547604,5.71814,2019.0,2018.7,4.573]
[1742724547803,5.71814,2019.0,2018.9,0.28459741]
[1742724548098,5.71814,2019.0,2018.8,0.28466231]
[1742724548301,5.71814,2019.0,2018.9,0.28459741]
[1742724548679,5.71814,2019.0,2018.7,4.573]
[1742724548890,5.71814,2019.0,2018.9,0.28459741]
[1742724549087,5.71814,2019.0,2018.8,0.28466231]
[1742724549278,5.71814,2019.0,2018.9,0.28459741]
[1742724549680,5.71814,2019.0,2018.7,4.573]
[1742724549881,5.71814,2019.0,2018.9,0.28459741]
[1742724550082,5.71814,2019.0,2018.8,0.28466231]
[1742724550405,5.71814,2019.0,2018.9,0.28459741]
[1742724550609,5.71814,2019.0,2018.7,4.573]
[1742724550766,5.71814,2019.0,2018.9,0.28459741]
[1742724550968,5.71814,2019.0,2018.7,4.573]
[1742724551973,5.71814,2019.0,2018.8,0.28466231]
[1742724552311,5.71814,2019.0,2018.7,4.573]
[1742724552507,5.71814,2019.0,2018.9,0.28459741]
[1742724552711,5.71814,2019.0,2018.8,0.28466231]
[1742724553010,5.71814,2019.0,2018.9,0.28459741]
[1742724553413,5.71814,2019.0,2018.7,4.573]
[1742724553613,5.71814,2019.0,2018.9,0.28550566]
[1742724553911,5.71814,2019.0,2018.8,0.28557056]
[1742724554083,5.71814,2019.0,2018.9,0.28550566]
[1742724554485,5.71814,2019.0,2018.7,4.573]
[1742724554711,5.71814,2019.0,2018.9,0.28550566]
[1742724554922,5.71814,2019.0,2018.8,0.28557056]
[1742724555117,5.71814,2019.0,2018.9,0.28550566]
[1742724555491,5.71814,2019.0,2018.7,4.573]
[1742724555692,4.95294,2019.0,2018.9,0.28550566]
[1742724555926,4.95294,2019.0,2018.8,0.28557056]
[1742724556210,4.95294,2019.0,2018.9,0.28550566]
[1742724556412,4.95294,2019.0,2018.7,4.573]
[1742724556576,4.95294,2019.0,2018.9,0.28550566]
[1742724556779,4.95294,2019.0,2018.7,4.573]
[1742724557216,4.95294,2019.0,2018.8,0.28557056]
[1742724557585,4.95294,2019.0,2018.7,4.573]
[1742724557915,4.95294,2019.0,2018.8,0.28557056]
[1742724558324,4.95294,2019.0,2018.7,4.573]
[1742724558493,4.95294,2019.0,2018.9,0.28550566]
[1742724558697,4.95294,2019.0,2018.8,0.28557056]
[1742724559027,5.72394,2019.0,2018.9,0.28550566]
[1742724559397,5.72394,2019.0,2018.7,4.573]
[1742724559597,5.72394,2019.0,2018.8,0.28557056]
[1742724559804,5.72394,2019.0,2018.7,4.573]
[1742724560011,5.72394,2019.0,2018.8,0.28557056]
[1742724560326,5.72394,2019.0,2018.7,4.573]
[1742724560521,5.72394,2019.0,2018.9,0.28550566]
[1742724560723,6.776618,2019.0,2018.8,0.28557056]
[1742724560928,5.70894,2019.0,2018.9,0.28550566]
[1742724561303,5.70894,2019.0,2018.7,4.573]
[1742724561510,5.70894,2019.0,2018.9,0.28550566]
[1742724562031,5.70894,2019.0,2018.7,4.573]
[1742724562238,5.70894,2019.0,2018.9,0.28550566]
[1742724562423,5.70894,2019.0,2018.8,0.28557056]
[1742724562626,5.70894,2019.0,2018.9,0.28550566]
[1742724563024,5.70894,2019.0,2018.7,4.573]
[1742724563211,5.70894,2019.0,2018.9,0.28598666]
[1742724563413,5.70894,2019.0,2018.8,0.28605156]
[1742724563598,5.70894,2019.0,2018.9,0.28598666]
[1742724563794,5.70894,2019.0,2018.7,4.573]
[1742724564044,5.70894,2019.0,2018.8,0.28605156]
[1742724564528,1.837178,2019.0,2018.7,4.573]
[1742724564830,4.95319,2018.9,2018.8,0.28605156]
[1742724565210,4.95319,2018.9,2018.7,4.573]
[1742724565410,4.95319,2018.9,2018.8,0.28605156]
[1742724565637,4.95319,2018.9,2018.7,4.573]
[1742724565867,5.72395,2019.0,2018.8,0.28605156]
[1742724566370,5.72395,2019.0,2018.9,0.28598666]
[1742724566565,5.72395,2019.0,2018.7,4.573]
[1742724566771,5.72395,2019.0,2018.8,0.28605156]
[1742724566942,5.72395,2019.0,2018.7,4.573]
[1742724567132,5.72395,2019.0,2018.8,0.28605156]
[1742724567331,5.72395,2019.0,2018.7,4.573]
[1742724567531,5.72395,2019.0,2018.8,0.28605156]
[1742724567869,5.72395,2019.0,2018.7,4.573]
[1742724568069,5.72395,2019.0,2018.9,0.28598666]
[1742724568539,5.72395,2019.0,2018.7,4.573]
[1742724568740,5.72395,2019.0,2018.8,0.28605156]
[1742724568961,5.72395,2019.0,2018.7,4.573]
[1742724569170,4.95295,2019.0,2018.8,0.28605156]
[1742724569322,4.95295,2019.0,2018.7,4.573]
[1742724569526,4.95295,2019.0,2018.8,0.28605156]
[1742724569728,4.95295,2019.0,2018.7,4.573]
[1742724570054,4.95295,2019.0,2018.8,0.28605156]
[1742724570371,4.95295,2019.0,2018.7,4.573]
[1742724570614,8.7509,2019.1,2018.8,0.28605156]
[1742724570801,8.7509,2019.1,2018.7,9.52668]
[1742724571117,8.7509,2019.1,2018.8,0.28605156]
[1742724571486,8.7509,2019.1,2018.7,9.52668]
[1742724571709,8.7509,2019.1,2018.9,0.28598666]
[1742724572010,4.97237,2019.3,2019.0,0.28592177]
[1742724572211,0.02,2019.3,2019.1,4.95267]
[1742724572415,4.95224,2019.3,2019.2,0.28167589]
[1742724572618,4.95224,2019.3,2018.9,5.60258]
[1742724572789,4.95224,2019.3,2019.0,5.23474565]
[1742724574204,9.90464,2019.3,2019.0,0.28180565]
[1742724574511,4.95224,2019.3,2019.0,0.28180565]
[1742724582557,4.95249,2019.2,2019.0,0.28180565]
[1742724585353,4.9527,2019.1,2019.0,0.28180565]
[1742724586154,9.90516,2019.2,2019.0,0.28180565]
[1742724586728,9.90504,2019.2,2019.0,0.28180565]
[1742724586954,4.95249,2019.2,2019.0,0.28180565]
[1742724589774,4.95221,2019.3,2019.0,0.28180565]
[1742724592474,4.9527,2019.1,2019.0,0.28180565]
[1742724592862,4.95221,2019.3,2018.8,4.95341]
[1742724593072,4.95252,2019.2,2019.0,0.2796684]
[1742724593378,4.95252,2019.2,2018.8,4.95341]
[1742724593559,4.95252,2019.2,2018.9,0.27973329]
[1742724595837,4.95252,2019.2,2018.9,5.23291329]
[1742724596266,4.95252,2019.2,2018.9,5.88231329]
[1742724596582,4.95224,2019.3,2018.9,5.88231329]
[1742724598577,4.9519,2019.5,2018.9,1.31015191]
[1742724598777,4.9519,2019.5,2019.0,4.95281]
[1742724598980,4.95203,2019.4,2019.1,0.27735976]
[1742724601586,9.9042,2019.4,2019.1,0.27735976]
[1742724601955,4.95203,2019.4,2019.1,0.27735976]
[1742724602292,4.95223,2019.3,2019.1,0.27735976]
[1742724602498,9.90464,2019.3,2019.1,0.27735976]
[1742724602665,4.95245,2019.2,2018.9,1.03041862]
[1742724603257,5.73233,2019.3,2018.9,5.98360862]
[1742724604495,10.68473,2019.3,2018.9,5.98360862]
[1742724604786,5.73233,2019.3,2018.9,5.98360862]
[1742724606291,10.68475,2019.3,2018.9,5.98360862]
[1742724606598,4.95247,2019.2,2018.9,5.98360862]
[1742724608191,5.73233,2019.3,2018.9,5.98360862]
[1742724608994,10.68474,2019.3,2018.9,5.98360862]
[1742724609389,5.73233,2019.3,2018.9,5.98360862]
[1742724609691,10.68474,2019.3,2018.9,5.98360862]
[1742724610393,5.73233,2019.3,2018.9,5.98360862]
[1742724613591,5.73233,2019.3,2019.0,0.18340831]
[1742724618611,10.68477,2019.3,2019.0,0.18340831]
[1742724618768,5.73233,2019.3,2019.0,0.18340831]
[1742724620299,4.95223,2019.3,2019.0,0.18340831]
[1742724625273,4.95197,2019.4,2019.0,0.18340831]
[1742724625479,4.95197,2019.4,2019.1,0.6494]
[1742724625875,4.95197,2019.4,2019.2,0.16857753]
[1742724631218,4.95197,2019.4,2019.2,0.51073352]
[1742724633622,9.90413,2019.4,2019.2,0.51073352]
[1742724633783,11.28335627,2019.4,2019.2,0.51073352]
[1742724635430,6.33119627,2019.4,2019.2,0.51073352]
[1742724636526,11.28335627,2019.4,2019.2,0.51073352]
[1742724640539,6.33119627,2019.4,2019.2,0.51073352]
[1742724640710,11.28336627,2019.4,2019.2,0.51073352]
[1742724642846,4.95221,2019.3,2019.2,0.51073352]
[1742724643235,4.95221,2019.3,2018.9,10.93653862]
[1742724643531,4.95221,2019.3,2019.0,0.5099091]
[1742724646108,4.95257,2019.2,2019.0,0.5099091]
[1742724646310,4.9527,2019.1,2019.0,0.5099091]
[1742724646809,4.95295,2019.0,2018.7,26.8364]
[1742724647019,4.95343,2018.8,2018.7,30.758]
[1742724651147,4.95343,2018.8,2018.7,26.187]
[1742724653156,5.76565,2018.9,2018.7,26.187]
[1742724654051,5.76565,2018.9,2018.5,5.60355]
[1742724656762,10.71905,2018.9,2018.5,5.60355]
[1742724656957,5.76565,2018.9,2018.5,5.60355]
[1742724658323,5.76565,2018.9,2018.5,10.55753]
[1742724658662,5.76565,2018.9,2018.6,0.46881375]
[1742724670702,4.95349,2018.8,2018.6,0.46881375]
[1742724671081,4.95349,2018.8,2018.4,9.5264]
[1742724671241,4.95349,2018.8,2018.5,0.43133048]
[1742724672480,0.7972,2018.7,2018.5,0.43133048]
[1742724673585,5.75094,2018.7,2018.5,0.43133048]
[1742724673878,5.75094,2018.7,2018.4,4.572]
[1742724674075,5.75094,2018.7,2018.5,0.43140115]
[1742724674944,4.95392,2018.6,2018.5,0.43140115]
[1742724675246,4.95392,2018.6,2018.3,26.19]
[1742724675463,9.90806,2018.6,2018.4,0.43273305]
[1742724675663,9.90806,2018.6,2018.3,26.19]
[1742724675884,4.95417,2018.5,2018.4,0.43273305]
[1742724676082,4.95417,2018.5,2018.3,26.19]
[1742724676390,4.95417,2018.5,2018.4,0.43273305]
[1742724676695,4.95417,2018.5,2018.3,26.19]
[1742724676900,4.95417,2018.5,2018.4,0.43273305]
[1742724677291,4.95417,2018.5,2018.3,26.19]
[1742724677584,4.95417,2018.5,2018.4,0.43273305]
[1742724677953,4.95417,2018.5,2018.3,26.19]
[1742724678154,4.95417,2018.5,2018.4,0.43273305]
[1742724678345,4.95392,2018.6,2018.4,0.43273305]
[1742724678551,9.908,2018.6,2018.3,26.19]
[1742724678775,4.95392,2018.6,2018.5,0.43267281]
[1742724678975,6.1314453,2018.6,2018.4,0.43273305]
[1742724679181,6.1314453,2018.6,2018.5,0.43267281]
[1742724679487,4.95392,2018.6,2018.3,26.19]
[1742724679988,4.95392,2018.6,2018.4,0.43273305]
[1742724680409,3.0,2018.8,2018.5,4.95399]
[1742724680695,3.0,2018.8,2018.5,5.38666281]
[1742724680876,7.95344,2018.8,2018.5,5.38666281]
[1742724681465,7.95344,2018.8,2018.5,0.43267281]
[1742724681666,7.95344,2018.8,2018.3,10.55838]
[1742724681958,7.95344,2018.8,2018.4,0.43326304]
[1742724682362,7.95344,2018.8,2018.4,4.95438]
[1742724682900,7.95344,2018.8,2018.5,0.4332028]